fUSD/lending_fUSD_20240420
["ID","MTS","AMOUNT","RATE_DAILY","PERIOD"]
[322997504,1713580246181,-552.84,0.00015068,2]
[322997505,1713580246190,-500.0,0.00015068,2]
[322997507,1713580246200,-1355.7,0.00015068,2]
[322997508,1713580246209,-1493.1,0.00015068,2]
[322997509,1713580246218,-629.87,0.00015068,2]
[322997510,1713580246227,-500.0,0.00015068,2]
[322997511,1713580246238,-4236.44,0.00015068,2]
[322997512,1713580246249,-500.0,0.00015068,2]
[322997513,1713580246260,-9436.78,0.00015068,2]
[322997515,1713580246270,-895.99,0.00015068,2]
[322997517,1713580246280,-288.70319075,0.00015068,2]
[322997519,1713580246289,-973.7,0.00015068,2]
[322997521,1713580246298,-1603.89,0.00015068,2]
[322997523,1713580246308,-500.0,0.00015068,2]
[322997525,1713580246317,-500.0,0.00015068,2]
[322997526,1713580246329,-500.0,0.00015068,2]
[322997527,1713580246339,-500.0,0.00015068,2]
[322997528,1713580246348,-500.0,0.00015068,2]
[322997530,1713580246358,-500.0,0.00015068,2]
[322997532,1713580246367,-617.42,0.00015068,2]
[322997534,1713580246377,-500.0,0.00015068,2]
[322997536,1713580246387,-1488.19,0.00015068,2]
[322997538,1713580246399,-599.55,0.00015068,2]
[322997540,1713580246409,-1545.66,0.00015068,2]
[322997542,1713580246419,-2178.6,0.00015068,2]
[322997544,1713580246428,-665.51,0.00015068,2]
[322997546,1713580246437,-634.42,0.00015068,2]
[322997548,1713580246447,-1208.88,0.00015068,2]
[322997550,1713580246456,-4860.77,0.00015068,2]
[322997553,1713580246466,-740.8,0.00015068,2]
[322997555,1713580246476,-500.0,0.00015068,2]
[322997557,1713580246486,-498.0,0.00015068,2]
[322997558,1713580246495,-500.0,0.00015068,2]
[322997561,1713580246505,-1217.94,0.00015068,2]
[322997563,1713580246515,-500.0,0.00015068,2]
[322997565,1713580246524,-1191.42,0.00015068,2]
[322997567,1713580246533,-500.0,0.00015068,2]
[322997568,1713580246543,-500.0,0.00015068,2]
[322997569,1713580246552,-1548.58,0.00015068,2]
[322997570,1713580246562,-500.0,0.00015068,2]
[322997571,1713580246571,-571.8472961,0.00015068,2]
[322997572,1713580246581,-500.0,0.00015068,2]
[322997573,1713580246590,-2601.14,0.00015068,2]
[322997574,1713580246599,-500.0,0.00015068,2]
[322997575,1713580246609,-1179.4,0.00015068,2]
[322997576,1713580246618,-1054.59,0.00015068,2]
[322997577,1713580246627,-436.40339478,0.00015068,2]
[322997578,1713580246638,-755.33,0.00015068,2]
[322997579,1713580246649,-933.35,0.00015068,2]
[322997580,1713580246659,-500.0,0.00015068,2]
[322997581,1713580246668,-969.92,0.00015068,2]
[322997582,1713580246677,-3033.54,0.00015068,2]
[322997583,1713580246691,-500.0,0.00015068,2]
[322997584,1713580246701,-1947.86,0.00015068,2]
[322997585,1713580246710,-500.0,0.00015068,2]
[322997586,1713580246719,-1725.02,0.00015068,2]
[322997587,1713580246728,-3129.91,0.00015068,2]
[322997588,1713580246737,-500.0,0.00015068,2]
[322997589,1713580246746,-591.46,0.00015068,2]
[322997590,1713580246756,-500.0,0.00015068,2]
[322997591,1713580246766,-806.84,0.00015068,2]
[322997592,1713580246775,-3445.41,0.00015068,2]
[322997593,1713580246785,-500.0,0.00015068,2]
[322997594,1713580246794,-5843.15,0.00015068,2]
[322997595,1713580246803,-500.0,0.00015068,2]
[322997596,1713580246813,-500.0,0.00015068,2]
[322997597,1713580246822,-500.0,0.00015068,2]
[322997598,1713580246831,-641.76,0.00015068,2]
[322997599,1713580246841,-1013.29,0.00015068,2]
[322997600,1713580246851,-500.0,0.00015068,2]
[322997601,1713580246860,-1039.8,0.00015068,2]
[322997602,1713580246870,-4946.93,0.00015068,2]
[322997603,1713580246880,-500.0,0.00015068,2]
[322997604,1713580246891,-2746.38,0.00015068,2]
[322997605,1713580246902,-1780.52,0.00015068,2]
[322997606,1713580246911,-993.22,0.00015068,2]
[322997607,1713580246920,-359.12873447,0.00015068,2]
[322997608,1713580246930,-1212.05,0.00015068,2]
[322997609,1713580246940,-500.0,0.00015068,2]
[322997610,1713580246950,-500.0,0.00015068,2]
[322997611,1713580246960,-500.0,0.00015068,2]
[322997612,1713580246972,-550.69,0.00015068,2]
[322997613,1713580246983,-500.0,0.00015068,2]
[322997614,1713580247076,-500.0,0.00015068,2]
[322997615,1713580247085,-1790.21,0.00015068,2]
[322997616,1713580247094,-559.19,0.00015068,2]
[322997617,1713580247104,-740.69,0.00015068,2]
[322997618,1713580247113,-6356.68,0.00015068,2]
[322997619,1713580247122,-427.91887425,0.00015068,2]
[322997620,1713580247132,-1055.82,0.00015068,2]
[322997621,1713580247143,-791.39,0.00015068,2]
[322997622,1713580247155,-572.99,0.00015068,2]
[322997623,1713580247164,-500.0,0.00015068,2]
[322997624,1713580247173,-1931.46,0.00015068,2]
[322997625,1713580247183,-3464.94,0.00015068,2]
[322997626,1713580247193,-1073.35,0.00015068,2]
[322997627,1713580247202,-623.65,0.00015068,2]
[322997628,1713580247212,-772.09,0.00015068,2]
[322997629,1713580247223,-500.0,0.00015068,2]
[322997630,1713580247233,-765.98,0.00015068,2]
[322997631,1713580247243,-500.0,0.00015068,2]
[322997632,1713580247252,-500.0,0.00015068,2]
[322997633,1713580247262,-1349.98,0.00015068,2]
[322997634,1713580247271,-500.0,0.00015068,2]
[322997635,1713580247281,-500.0,0.00015068,2]
[322997636,1713580247290,-1966.64,0.00015068,2]
[322997637,1713580247299,-2301.91,0.00015068,2]
[322997638,1713580247309,-2335.64,0.00015068,2]
[322997639,1713580247319,-500.0,0.00015068,2]
[322997640,1713580247329,-953.96,0.00015068,2]
[322997641,1713580247338,-2023.55,0.00015068,2]
[322997642,1713580247347,-500.0,0.00015068,2]
[322997643,1713580247356,-750.11,0.00015068,2]
[322997644,1713580247365,-1270.95,0.00015068,2]
[322997645,1713580247374,-1588.51,0.00015068,2]
[322997646,1713580247384,-939.32,0.00015068,2]
[322997647,1713580247393,-765.98,0.00015068,2]
[322997648,1713580247404,-500.0,0.00015068,2]
[322997649,1713580247414,-500.0,0.00015068,2]
[322997650,1713580247423,-1807.43,0.00015068,2]
[322997651,1713580247432,-500.0,0.00015068,2]
[322997652,1713580247441,-500.0,0.00015068,2]
[322997653,1713580247451,-631.85801001,0.00015068,2]
[322997654,1713580247460,-1990.97,0.00015068,2]
[322997655,1713580247469,-500.0,0.00015068,2]
[322997656,1713580247477,-1831.19,0.00015068,2]
[322997657,1713580247487,-3091.69,0.00015068,2]
[322997658,1713580247496,-500.0,0.00015068,2]
[322997659,1713580247506,-500.0,0.00015068,2]
[322997660,1713580247515,-500.0,0.00015068,2]
[322997661,1713580247524,-2966.33,0.00015068,2]
[322997662,1713580247533,-1068.79,0.00015068,2]
[322997663,1713580247542,-500.0,0.00015068,2]
[322997664,1713580247551,-500.0,0.00015068,2]
[322997665,1713580247560,-2255.37,0.00015068,2]
[322997666,1713580247569,-751.13,0.00015068,2]
[322997667,1713580247578,-506.56,0.00015068,2]
[322997668,1713580247587,-501.92545288,0.00015068,2]
[322997669,1713580247596,-1573.35,0.00015068,2]
[322997670,1713580247605,-2851.19,0.00015068,2]
[322997671,1713580247614,-2253.43,0.00015068,2]
[322997672,1713580247623,-18556.8,0.00015068,2]
[322997673,1713580247633,-791.17,0.00015068,2]
[322997674,1713580247642,-500.0,0.00015068,2]
[322997675,1713580247652,-924.69,0.00015068,2]
[322997676,1713580247661,-500.0,0.00015068,2]
[322997677,1713580247670,-875.74,0.00015068,2]
[322997678,1713580247680,-2708.32,0.00015068,2]
[322997679,1713580247689,-969.21,0.00015068,2]
[322997680,1713580247698,-500.0,0.00015068,2]
[322997681,1713580247706,-1634.68,0.00015068,2]
[322997682,1713580247715,-1123.6,0.00015068,2]
[322997683,1713580247725,-500.0,0.00015068,2]
[322997684,1713580247734,-500.0,0.00015068,2]
[322997685,1713580247743,-1911.47,0.00015068,2]
[322997686,1713580247752,-529.6,0.00015068,2]
[322997687,1713580247762,-1159.2,0.00015068,2]
[322997688,1713580247770,-853.81,0.00015068,2]
[322997689,1713580247780,-6534.01,0.00015068,2]
[322997690,1713580247788,-500.0,0.00015068,2]
[322997691,1713580247797,-365.13652493,0.00015068,2]
[322997692,1713580247806,-500.0,0.00015068,2]
[322997693,1713580247815,-500.0,0.00015068,2]
[322997694,1713580247825,-847.04,0.00015068,2]
[322997695,1713580247834,-631.77,0.00015068,2]
[322997696,1713580247843,-550.97,0.00015068,2]
[322997697,1713580247852,-750.02,0.00015068,2]
[322997698,1713580247861,-500.0,0.00015068,2]
[322997699,1713580247870,-5215.13,0.00015068,2]
[322997700,1713580247879,-500.0,0.00015068,2]
[322997701,1713580247889,-730.38,0.00015068,2]
[322997702,1713580247901,-4934.29,0.00015068,2]
[322997703,1713580247910,-3926.37,0.00015068,2]
[322997704,1713580247919,-500.0,0.00015068,2]
[322997705,1713580247928,-7551.77,0.00015068,2]
[322997706,1713580247937,-2145.51,0.00015068,2]
[322997707,1713580247946,-1523.94,0.00015068,2]
[322997708,1713580247955,-500.0,0.00015068,2]
[322997709,1713580247964,-2391.65,0.00015068,2]
[322997710,1713580247973,-2327.53,0.00015068,2]
[322997711,1713580247982,-991.19,0.00015068,2]
[322997712,1713580247991,-500.0,0.00015068,2]
[322997713,1713580248000,-532.82,0.00015068,2]
[322997714,1713580248010,-500.0,0.00015068,2]
[322997715,1713580248019,-500.0,0.00015068,2]
[322997716,1713580248028,-500.0,0.00015068,2]
[322997717,1713580248037,-500.0,0.00015068,2]
[322997718,1713580248046,-500.0,0.00015068,2]
[322997719,1713580248055,-500.0,0.00015068,2]
[322997720,1713580248064,-1213.07,0.00015068,2]
[322997721,1713580248073,-500.0,0.00015068,2]
[322997722,1713580248082,-500.0,0.00015068,2]
[322997723,1713580248091,-5093.01,0.00015068,2]
[322997724,1713580248100,-5160.86,0.00015068,2]
[322997725,1713580248110,-943.23,0.00015068,2]
[322997726,1713580248120,-27454.48,0.00015068,2]
[322997727,1713580248128,-500.0,0.00015068,2]
[322997728,1713580248138,-1139.05,0.00015068,2]
[322997729,1713580248147,-709.71,0.00015068,2]
[322997730,1713580248162,-500.0,0.00015068,2]
[322997731,1713580248171,-500.0,0.00015068,2]
[322997732,1713580248181,-618.2,0.00015068,2]
[322997733,1713580248190,-500.0,0.00015068,2]
[322997734,1713580248200,-692.58,0.00015068,2]
[322997735,1713580248210,-500.0,0.00015068,2]
[322997736,1713580248221,-547.26,0.00015068,2]
[322997737,1713580248230,-500.0,0.00015068,2]
[322997738,1713580248239,-501.14290849,0.00015068,2]
[322997739,1713580248248,-500.0,0.00015068,2]
[322997740,1713580248258,-500.0,0.00015068,2]
[322997741,1713580248266,-1146.2,0.00015068,2]
[322997742,1713580248275,-500.0,0.00015068,2]
[322997743,1713580248284,-500.0,0.00015068,2]
[322997744,1713580248293,-487.35948736,0.00015068,2]
[322997745,1713580248303,-500.0,0.00015068,2]
[322997746,1713580248313,-8066.31,0.00015068,2]
[322997747,1713580248327,-1846.35,0.00015068,2]
[322997748,1713580248338,-522.6,0.00015068,2]
[322997749,1713580248348,-2137.04,0.00015068,2]
[322997750,1713580248359,-500.0,0.00015068,2]
[322997751,1713580248368,-924.13,0.00015068,2]
[322997752,1713580248378,-519.13,0.00015068,2]
[322997753,1713580248387,-500.0,0.00015068,2]
[322997754,1713580248396,-1790.11,0.00015068,2]
[322997755,1713580248409,-484.98198157,0.00015068,2]
[322997756,1713580248418,-2328.01,0.00015068,2]
[322997757,1713580248428,-795.24,0.00015068,2]
[322997758,1713580248438,-500.0,0.00015068,2]
[322997759,1713580248447,-500.0,0.00015068,2]
[322997760,1713580248457,-925.3,0.00015068,2]
[322997761,1713580248466,-2284.10261548,0.00015125,2]
[322997762,1713580248475,-7781.2287563,0.00015241,2]
[322997763,1713580248485,-151.96338088,0.00015242,2]
[322997764,1713580248494,-456.28766367,0.00015281,2]
[322997765,1713580249091,-1827.81495181,0.00015281,2]
[322997766,1713580249100,-800.0,0.00015315,2]
[322997767,1713580249110,-500.0,0.00015342,2]
[322997768,1713580249119,-500.0,0.00015342,2]
[322997769,1713580249129,-501.14402267,0.00015342,2]
[322997770,1713580249138,-1106.7,0.00015342,2]
[322997771,1713580249149,-1147.28,0.00015342,2]
[322997772,1713580249158,-500.0,0.00015342,2]
[322997773,1713580249167,-105.47102552,0.00015342,2]
[322997774,1713580249254,-500.0,0.00015068,2]
[322997775,1713580249263,-394.52897448,0.00015342,2]
[322997776,1713580249272,-687.19,0.00015342,2]
[322997777,1713580249281,-500.0,0.00015342,2]
[322997778,1713580249291,-500.0,0.00015342,2]
[322997779,1713580249300,-500.0,0.00015342,2]
[322997780,1713580249311,-500.0,0.00015342,2]
[322997781,1713580249322,-500.0,0.00015342,2]
[322997782,1713580249331,-500.0,0.00015342,2]
[322997783,1713580249340,-500.50235361,0.00015342,2]
[322997784,1713580249350,-500.0,0.00015342,2]
[322997785,1713580249359,-500.0,0.00015342,2]
[322997786,1713580249369,-824.52,0.00015342,2]
[322997787,1713580249378,-500.0,0.00015342,2]
[322997788,1713580249389,-500.0,0.00015342,2]
[322997789,1713580249399,-857.56,0.00015342,2]
[322997790,1713580249408,-500.0,0.00015342,2]
[322997791,1713580249417,-1091.85,0.00015342,2]
[322997792,1713580249426,-804.74,0.00015342,2]
[322997793,1713580249435,-500.0,0.00015342,2]
[322997794,1713580249444,-500.0,0.00015342,2]
[322997795,1713580249454,-500.0,0.00015342,2]
[322997796,1713580249463,-500.0,0.00015342,2]
[322997797,1713580249472,-500.0,0.00015342,2]
[322997798,1713580249481,-508.34,0.00015342,2]
[322997799,1713580249491,-500.0,0.00015342,2]
[322997800,1713580249500,-626.22,0.00015342,2]
[322997801,1713580249509,-882.0,0.00015342,2]
[322997802,1713580249519,-500.0,0.00015342,2]
[322997803,1713580249529,-558.13,0.00015342,2]
[322997804,1713580249539,-1538.84,0.00015342,2]
[322997805,1713580249548,-1081.07,0.00015342,2]
[322997806,1713580249557,-500.0,0.00015342,2]
[322997807,1713580249566,-560.90836088,0.00015342,2]
[322997808,1713580249576,-826.76,0.00015342,2]
[322997809,1713580249585,-500.0,0.00015342,2]
[322997810,1713580249594,-683.5,0.00015342,2]
[322997811,1713580249604,-500.0,0.00015342,2]
[322997812,1713580249613,-511.95,0.00015342,2]
[322997813,1713580249622,-500.0,0.00015342,2]
[322997814,1713580249631,-500.0,0.00015342,2]
[322997815,1713580249640,-500.0,0.00015342,2]
[322997816,1713580249651,-500.0,0.00015342,2]
[322997817,1713580249661,-500.0,0.00015342,2]
[322997818,1713580249670,-500.0,0.00015342,2]
[322997819,1713580249679,-500.0,0.00015342,2]
[322997820,1713580249688,-500.0,0.00015342,2]
[322997821,1713580249697,-500.0,0.00015342,2]
[322997822,1713580249706,-642.90493454,0.00015342,2]
[322997823,1713580249715,-500.0,0.00015342,2]
[322997824,1713580249724,-500.0,0.00015342,2]
[322997825,1713580249733,-500.0,0.00015342,2]
[322997826,1713580249742,-1186.71,0.00015342,2]
[322997827,1713580249751,-1363.83,0.00015342,2]
[322997828,1713580249760,-500.0,0.00015342,2]
[322997829,1713580249769,-500.0,0.00015342,2]
[322997830,1713580249778,-567.17,0.00015342,2]
[322997831,1713580249787,-738.04,0.00015342,2]
[322997832,1713580249797,-500.0,0.00015342,2]
[322997833,1713580249806,-500.0,0.00015342,2]
[322997834,1713580249815,-500.0,0.00015342,2]
[322997835,1713580249825,-500.0,0.00015342,2]
[322997836,1713580249834,-500.0,0.00015342,2]
[322997837,1713580249843,-689.45,0.00015342,2]
[322997838,1713580249852,-500.0,0.00015342,2]
[322997839,1713580249861,-500.0,0.00015342,2]
[322997840,1713580249870,-315.17974812,0.00015342,2]
[322997841,1713580249880,-535.94468012,0.00015342,2]
[322997842,1713580249889,-707.03,0.00015342,2]
[322997843,1713580249900,-500.0,0.00015342,2]
[322997844,1713580249909,-500.0,0.00015342,2]
[322997845,1713580249917,-500.0,0.00015342,2]
[322997846,1713580249926,-500.0,0.00015342,2]
[322997847,1713580249935,-500.0,0.00015342,2]
[322997848,1713580249945,-500.0,0.00015342,2]
[322997849,1713580249954,-500.0,0.00015342,2]
[322997850,1713580249965,-880.12,0.00015342,2]
[322997851,1713580249974,-820.98,0.00015342,2]
[322997852,1713580249983,-802.06,0.00015342,2]
[322997853,1713580249995,-702.59,0.00015342,2]
[322997854,1713580250005,-500.0,0.00015342,2]
[322997855,1713580250014,-500.0,0.00015342,2]
[322997856,1713580250024,-610.9,0.00015342,2]
[322997857,1713580250033,-656.01,0.00015342,2]
[322997858,1713580250042,-500.0,0.00015342,2]
[322997859,1713580250051,-665.52,0.00015342,2]
[322997860,1713580250061,-500.0,0.00015342,2]
[322997861,1713580250070,-500.0,0.00015342,2]
[322997862,1713580250079,-546.23,0.00015342,2]
[322997863,1713580250089,-500.0,0.00015342,2]
[322997864,1713580250098,-500.0,0.00015342,2]
[322997865,1713580250107,-500.0,0.00015342,2]
[322997866,1713580250116,-500.0,0.00015342,2]
[322997867,1713580250125,-500.0,0.00015342,2]
[322997868,1713580250135,-595.64,0.00015342,2]
[322997869,1713580250144,-500.0,0.00015342,2]
[322997870,1713580250153,-611.5,0.00015342,2]
[322997871,1713580250162,-707.13,0.00015342,2]
[322997872,1713580250171,-518.81,0.00015342,2]
[322997873,1713580250181,-642.73,0.00015342,2]
[322997874,1713580250189,-646.24,0.00015342,2]
[322997875,1713580250199,-500.0,0.00015342,2]
[322997876,1713580250209,-668.74,0.00015342,2]
[322997877,1713580250218,-984.32,0.00015342,2]
[322997878,1713580250227,-507.56,0.00015342,2]
[322997879,1713580250236,-402.43777256,0.00015342,2]
[322997880,1713580250246,-500.0,0.00015342,2]
[322997881,1713580250255,-500.0,0.00015342,2]
[322997882,1713580250265,-500.23,0.00015342,2]
[322997883,1713580250274,-500.0,0.00015342,2]
[322997884,1713580250283,-500.0,0.00015342,2]
[322997885,1713580250292,-500.0,0.00015342,2]
[322997886,1713580250302,-150.0,0.00015342,2]
[322997887,1713580250313,-500.0,0.00015342,2]
[322997888,1713580250328,-500.0,0.00015342,2]
[322997889,1713580250337,-505.71,0.00015342,2]
[322997890,1713580250347,-747.52,0.00015342,2]
[322997891,1713580250358,-500.0,0.00015342,2]
[322997892,1713580250367,-500.0,0.00015342,2]
[322997893,1713580250376,-500.0,0.00015342,2]
[322997894,1713580250385,-561.65,0.00015342,2]
[322997895,1713580250397,-500.0,0.00015342,2]
[322997896,1713580250409,-500.0,0.00015342,2]
[322997897,1713580250418,-500.0,0.00015342,2]
[322997898,1713580250552,-215.30748422,0.00015342,2]
[322997899,1713580250562,-532.33,0.00015342,2]
[322997900,1713580250572,-500.0,0.00015342,2]
[322997901,1713580250582,-500.0,0.00015342,2]
[322997902,1713580250591,-616.51,0.00015342,2]
[322997903,1713580250600,-500.0,0.00015342,2]
[322997904,1713580250610,-664.1,0.00015342,2]
[322997905,1713580250619,-500.0,0.00015342,2]
[322997906,1713580250629,-500.0,0.00015342,2]
[322997907,1713580250638,-500.0,0.00015342,2]
[322997908,1713580250647,-500.0,0.00015342,2]
[322997909,1713580250663,-500.0,0.00015342,2]
[322997910,1713580250672,-500.0,0.00015342,2]
[322997911,1713580250681,-500.0,0.00015342,2]
[322997912,1713580250690,-524.02,0.00015342,2]
[322997913,1713580250699,-715.95,0.00015342,2]
[322997914,1713580250709,-500.0,0.00015342,2]
[322997915,1713580250718,-765.54,0.00015342,2]
[322997916,1713580250728,-407.7235818,0.00015342,2]
[322997917,1713580250737,-500.0,0.00015342,2]
[322997918,1713580250746,-500.0,0.00015342,2]
[322997919,1713580250755,-500.0,0.00015342,2]
[322997920,1713580250764,-500.0,0.00015342,2]
[322997921,1713580250773,-437.97256846,0.00015342,2]
[322997922,1713580250782,-500.0,0.00015342,2]
[322997923,1713580250791,-500.0,0.00015342,2]
[322997924,1713580250801,-500.0,0.00015342,2]
[322997925,1713580250810,-159.92888838,0.00015342,2]
[322997926,1713580250819,-500.0,0.00015342,2]
[322997927,1713580250828,-1059.51,0.00015342,2]
[322997928,1713580250838,-500.0,0.00015342,2]
[322997929,1713580250847,-600.97,0.00015342,2]
[322997930,1713580250856,-539.25,0.00015342,2]
[322997931,1713580250865,-500.0,0.00015342,2]
[322997932,1713580250874,-500.0,0.00015342,2]
[322997933,1713580250884,-825.78,0.00015342,2]
[322997934,1713580250893,-500.0,0.00015342,2]
[322997935,1713580250905,-500.0,0.00015342,2]
[322997936,1713580250914,-657.26,0.00015342,2]
[322997937,1713580250923,-500.0,0.00015342,2]
[322997938,1713580250933,-518.46,0.00015342,2]
[322997939,1713580250942,-504.19523458,0.00015342,2]
[322997940,1713580250951,-872.14,0.00015342,2]
[322997941,1713580250998,-918.04,0.00015342,2]
[322997942,1713580251009,-500.0,0.00015342,2]
[322997943,1713580251018,-928.22,0.00015342,2]
[322997944,1713580251028,-500.0,0.00015342,2]
[322997945,1713580251037,-500.0,0.00015342,2]
[322997946,1713580251046,-988.0,0.00015342,2]
[322997947,1713580251056,-638.4,0.00015342,2]
[322997948,1713580251065,-500.0,0.00015342,2]
[322997949,1713580251074,-500.0,0.00015342,2]
[322997950,1713580251084,-713.47,0.00015342,2]
[322997951,1713580251093,-500.0,0.00015342,2]
[322997952,1713580251103,-500.0,0.00015342,2]
[322997953,1713580251112,-500.0,0.00015342,2]
[322997954,1713580251122,-500.0,0.00015342,2]
[322997955,1713580251132,-502.16,0.00015342,2]
[322997956,1713580251142,-500.0,0.00015342,2]
[322997957,1713580251156,-933.55,0.00015342,2]
[322997958,1713580251166,-500.0,0.00015342,2]
[322997959,1713580251175,-797.82,0.00015342,2]
[322997960,1713580251186,-500.0,0.00015342,2]
[322997961,1713580251196,-500.0,0.00015342,2]
[322997962,1713580251206,-500.0,0.00015342,2]
[322997963,1713580251216,-565.21,0.00015342,2]
[322997964,1713580251227,-500.0,0.00015342,2]
[322997965,1713580251236,-500.0,0.00015342,2]
[322997966,1713580251246,-500.0,0.00015342,2]
[322997967,1713580251256,-536.18,0.00015342,2]
[322997968,1713580251266,-800.08,0.00015342,2]
[322997969,1713580251277,-946.81,0.00015342,2]
[322997970,1713580251286,-500.0,0.00015342,2]
[322997971,1713580251296,-500.0,0.00015342,2]
[322997972,1713580251309,-500.0,0.00015342,2]
[322997973,1713580251321,-805.31,0.00015342,2]
[322997974,1713580251332,-500.0,0.00015342,2]
[322997975,1713580251341,-500.0,0.00015342,2]
[322997976,1713580251352,-500.0,0.00015342,2]
[322997977,1713580251361,-500.0,0.00015342,2]
[322997978,1713580251371,-500.0,0.00015342,2]
[322997979,1713580251381,-500.0,0.00015342,2]
[322997980,1713580251391,-559.34,0.00015342,2]
[322997981,1713580251402,-225.71729257,0.00015342,2]
[322997982,1713580251413,-501.56451484,0.00015342,2]
[322997983,1713580251422,-763.33,0.00015342,2]
[322997984,1713580251432,-817.39,0.00015342,2]
[322997985,1713580251442,-325.61038512,0.00015342,2]
[322997986,1713580251452,-1035.16,0.00015342,2]
[322997987,1713580251463,-1310.11,0.00015342,2]
[322997988,1713580251473,-500.0,0.00015342,2]
[322997989,1713580251483,-510.15,0.00015342,2]
[322997990,1713580251493,-1240.08,0.00015342,2]
[322997991,1713580251503,-596.0,0.00015342,2]
[322997992,1713580251513,-500.0,0.00015342,2]
[322997993,1713580251523,-500.0,0.00015342,2]
[322997994,1713580251535,-500.0,0.00015342,2]
[322997995,1713580251545,-500.0,0.00015342,2]
[322997996,1713580251556,-500.0,0.00015342,2]
[322997997,1713580251567,-500.0,0.00015342,2]
[322997998,1713580251578,-500.0,0.00015342,2]
[322997999,1713580251588,-635.85,0.00015342,2]
[322998000,1713580251598,-500.0,0.00015342,2]
[322998001,1713580251608,-601.58,0.00015342,2]
[322998002,1713580251619,-500.0,0.00015342,2]
[322998003,1713580251629,-500.0,0.00015342,2]
[322998004,1713580251640,-500.0,0.00015342,2]
[322998005,1713580251652,-1584.13,0.00015342,2]
[322998006,1713580251662,-500.0,0.00015342,2]
[322998007,1713580251674,-500.0,0.00015342,2]
[322998008,1713580251684,-500.0,0.00015342,2]
[322998009,1713580251694,-500.0,0.00015342,2]
[322998010,1713580251704,-933.06,0.00015342,2]
[322998011,1713580251714,-500.0,0.00015342,2]
[322998012,1713580251725,-916.25,0.00015342,2]
[322998013,1713580251736,-941.08,0.00015342,2]
[322998014,1713580251746,-500.0,0.00015342,2]
[322998015,1713580251756,-1088.87,0.00015342,2]
[322998016,1713580251766,-500.0,0.00015342,2]
[322998017,1713580251778,-500.0,0.00015342,2]
[322998018,1713580251787,-500.0,0.00015342,2]
[322998019,1713580251797,-500.0,0.00015342,2]
[322998020,1713580251807,-589.01,0.00015342,2]
[322998021,1713580251817,-798.73,0.00015342,2]
[322998022,1713580251830,-672.98,0.00015342,2]
[322998023,1713580251840,-510.24,0.00015342,2]
[322998024,1713580251850,-500.0,0.00015342,2]
[322998025,1713580251860,-1031.43,0.00015342,2]
[322998026,1713580251871,-500.0,0.00015342,2]
[322998027,1713580251882,-500.0,0.00015342,2]
[322998028,1713580251891,-500.0,0.00015342,2]
[322998029,1713580251902,-500.0,0.00015342,2]
[322998030,1713580251912,-724.38,0.00015342,2]